[Event "Titled Tuesday Blitz March 07 Early 2023"]
[White "Bach, Matthias"]
[Black "Kvaloy, Aksel Bu"]
[WhiteFideId "4603168"]
[BlackFideId "1528815"]
[WhiteElo "2165"]
[BlackElo "2208"]
[Result "0-1"]
[Round "01"]
[TimeControl "180+2"]
[Date "2023.03.07"]
[WhiteClock "0:00:22"]
[BlackClock "0:00:29"]

1. d4 {[%clk 0:02:53]}  Nf6 {[%clk 0:02:59]} 2. c4 {[%clk 0:02:53]}  e6 {[%clk 0:02:59]} 3. Nc3 {[%clk 0:02:53]}  Bb4 {[%clk 0:02:59]} 4. Bg5 {[%clk 0:02:53]}  O-O {[%clk 0:02:57]} 5. e3 {[%clk 0:02:52]}  c5 {[%clk 0:02:57]} 6. d5 {[%clk 0:02:52]}  exd5 {[%clk 0:02:54]} 7. cxd5 {[%clk 0:02:52]}  h6 {[%clk 0:02:53]} 8. Bh4 {[%clk 0:02:51]}  d6 {[%clk 0:02:53]} 9. Bd3 {[%clk 0:02:49]}  Nbd7 {[%clk 0:02:51]} 10. Nf3 {[%clk 0:02:44]}  Re8 {[%clk 0:02:47]} 11. O-O {[%clk 0:02:43]}  a6 {[%clk 0:02:47]} 12. a3 {[%clk 0:02:27]}  Ba5 {[%clk 0:02:46]} 13. Ne4 {[%clk 0:02:15]}  Qe7 {[%clk 0:02:28]} 14. Nxf6+ {[%clk 0:02:07]}  Nxf6 {[%clk 0:02:29]} 15. Bc2 {[%clk 0:02:01]}  b5 {[%clk 0:02:21]} 16. Qd3 {[%clk 0:02:00]}  c4 {[%clk 0:02:17]} 17. Qd4 {[%clk 0:01:54]}  Bb7 {[%clk 0:02:12]} 18. Bxf6 {[%clk 0:01:43]}  Qxf6 {[%clk 0:02:13]} 19. Qxf6 {[%clk 0:01:43]}  gxf6 {[%clk 0:02:14]} 20. Rfd1 {[%clk 0:01:39]}  Rac8 {[%clk 0:02:14]} 21. Nd4 {[%clk 0:01:37]}  Re5 {[%clk 0:02:12]} 22. Nf5 {[%clk 0:01:35]}  Rd8 {[%clk 0:02:04]} 23. Nxh6+ {[%clk 0:01:34]}  Kf8 {[%clk 0:02:05]} 24. Ng4 {[%clk 0:01:30]}  Rxd5 {[%clk 0:01:58]} 25. Rxd5 {[%clk 0:01:23]}  Bxd5 {[%clk 0:01:59]} 26. Nxf6 {[%clk 0:01:23]}  Be6 {[%clk 0:01:59]} 27. Rd1 {[%clk 0:01:20]}  d5 {[%clk 0:01:57]} 28. Nh5 {[%clk 0:01:20]}  Ke7 {[%clk 0:01:52]} 29. Nf4 {[%clk 0:01:19]}  Bb6 {[%clk 0:01:52]} 30. h4 {[%clk 0:01:17]}  d4 {[%clk 0:01:48]} 31. exd4 {[%clk 0:01:15]}  Bxd4 {[%clk 0:01:49]} 32. Nxe6 {[%clk 0:01:11]}  fxe6 {[%clk 0:01:50]} 33. b3 {[%clk 0:01:11]}  e5 {[%clk 0:01:43]} 34. bxc4 {[%clk 0:01:09]}  bxc4 {[%clk 0:01:44]} 35. h5 {[%clk 0:01:04]}  c3 {[%clk 0:01:30]} 36. h6 {[%clk 0:01:01]}  Rf8 {[%clk 0:01:30]} 37. Rf1 {[%clk 0:00:48]}  Kf6 {[%clk 0:01:28]} 38. h7 {[%clk 0:00:42]}  Kg7 {[%clk 0:01:27]} 39. g3 {[%clk 0:00:41]}  Rb8 {[%clk 0:01:26]} 40. Kg2 {[%clk 0:00:40]}  Rb2 {[%clk 0:01:26]} 41. Be4 {[%clk 0:00:35]}  Rd2 {[%clk 0:01:15]} 42. g4 {[%clk 0:00:32]}  c2 {[%clk 0:00:36]} 43. Rc1 {[%clk 0:00:25]}  Rxf2+ {[%clk 0:00:36]} 44. Kg3 {[%clk 0:00:23]}  Re2 {[%clk 0:00:34]} 45. Bf5 {[%clk 0:00:22]}  e4 {[%clk 0:00:30]} 46. Kf4 {[%clk 0:00:22]}  Bb2 {[%clk 0:00:29]} 0-1


[Site "https://www.chess.com"]

[Event "Titled Tuesday Blitz March 07 Early 2023"]
[White "Trent, Lawrence"]
[Black "Harriott, Tyrell"]
[WhiteFideId "408638"]
[BlackFideId "2086484"]
[WhiteElo "2458"]
[BlackElo "2107"]
[Result "1-0"]
[Round "01"]
[TimeControl "180+2"]
[Date "2023.03.07"]
[WhiteClock "0:00:40"]
[BlackClock "0:00:05"]

1. e3 {[%clk 0:02:59]}  e6 {[%clk 0:02:56]} 2. c4 {[%clk 0:02:59]}  d5 {[%clk 0:02:55]} 3. Nf3 {[%clk 0:03:00]}  c6 {[%clk 0:02:53]} 4. b3 {[%clk 0:03:00]}  f5 {[%clk 0:02:52]} 5. Bb2 {[%clk 0:03:00]}  Nf6 {[%clk 0:02:52]} 6. d3 {[%clk 0:02:59]}  Bd6 {[%clk 0:02:52]} 7. Be2 {[%clk 0:02:59]}  O-O {[%clk 0:02:52]} 8. O-O {[%clk 0:03:00]}  Nbd7 {[%clk 0:02:51]} 9. Nc3 {[%clk 0:02:59]}  a6 {[%clk 0:02:50]} 10. Qc2 {[%clk 0:02:59]}  e5 {[%clk 0:02:48]} 11. cxd5 {[%clk 0:02:50]}  cxd5 {[%clk 0:02:49]} 12. d4 {[%clk 0:02:47]}  e4 {[%clk 0:02:47]} 13. Ng5 {[%clk 0:02:47]}  Qe7 {[%clk 0:02:45]} 14. Nh3 {[%clk 0:02:44]}  Kh8 {[%clk 0:02:34]} 15. Rac1 {[%clk 0:02:35]}  Qf7 {[%clk 0:02:31]} 16. Na4 {[%clk 0:02:33]}  h6 {[%clk 0:02:18]} 17. f4 {[%clk 0:02:22]}  Ng4 {[%clk 0:01:57]} 18. Qd2 {[%clk 0:02:15]}  Rg8 {[%clk 0:01:53]} 19. Nf2 {[%clk 0:02:07]}  Ngf6 {[%clk 0:01:45]} 20. Kh1 {[%clk 0:02:06]}  Qe7 {[%clk 0:01:41]} 21. g4 {[%clk 0:02:03]}  fxg4 {[%clk 0:01:40]} 22. Nxg4 {[%clk 0:02:02]}  Nxg4 {[%clk 0:01:38]} 23. Bxg4 {[%clk 0:02:03]}  b5 {[%clk 0:01:33]} 24. Bxd7 {[%clk 0:02:02]}  Bxd7 {[%clk 0:01:25]} 25. Nb6 {[%clk 0:02:02]}  Be6 {[%clk 0:01:17]} 26. Nxa8 {[%clk 0:02:01]}  Rxa8 {[%clk 0:01:16]} 27. Rc6 {[%clk 0:02:01]}  Qd7 {[%clk 0:01:11]} 28. Rfc1 {[%clk 0:02:00]}  Bg4 {[%clk 0:01:11]} 29. Qf2 {[%clk 0:01:56]}  Bf3+ {[%clk 0:01:09]} 30. Kg1 {[%clk 0:01:56]}  Rf8 {[%clk 0:01:07]} 31. Qh4 {[%clk 0:01:10]}  Rf6 {[%clk 0:01:00]} 32. R1c2 {[%clk 0:01:09]}  Rg6+ {[%clk 0:00:55]} 33. Kf1 {[%clk 0:01:09]}  Rg4 {[%clk 0:00:50]} 34. Rc8+ {[%clk 0:01:09]}  Kh7 {[%clk 0:00:49]} 35. Qd8 {[%clk 0:01:09]}  Rg1+ {[%clk 0:00:21]} 36. Kxg1 {[%clk 0:01:00]}  Qg4+ {[%clk 0:00:20]} 37. Kf1 {[%clk 0:01:00]}  Qh3+ {[%clk 0:00:20]} 38. Ke1 {[%clk 0:00:59]}  Bb4+ {[%clk 0:00:19]} 39. Bc3 {[%clk 0:00:59]}  Qh4+ {[%clk 0:00:18]} 40. Qxh4 {[%clk 0:00:58]}  Ba3 {[%clk 0:00:09]} 41. Bb2 {[%clk 0:00:40]}  Bb4+ {[%clk 0:00:08]} 42. Kf2 {[%clk 0:00:40]}  Kg6 {[%clk 0:00:07]} 43. R2c6+ {[%clk 0:00:39]}  Kh7 {[%clk 0:00:07]} 44. Rxh6+ {[%clk 0:00:39]}  gxh6 {[%clk 0:00:06]} 45. Rc7+ {[%clk 0:00:39]}  Kg8 {[%clk 0:00:05]} 46. Qd8+ {[%clk 0:00:39]}  Bf8 {[%clk 0:00:05]} 47. Ba3 {[%clk 0:00:40]} 1-0


[Site "https://www.chess.com"]

[Event "Titled Tuesday Blitz March 07 Early 2023"]
[White "Boder, Jan"]
[Black "Guzman, Christopher"]
[WhiteFideId "16243226"]
[BlackFideId "6405096"]
[WhiteElo "2241"]
[BlackElo "2281"]
[Result "0-1"]
[Round "01"]
[TimeControl "180+2"]
[Date "2023.03.07"]
[WhiteClock "0:00:08"]
[BlackClock "0:01:51"]

1. c4 {[%clk 0:02:58]}  Nf6 {[%clk 0:02:59]} 2. g3 {[%clk 0:02:57]}  e6 {[%clk 0:03:00]} 3. Bg2 {[%clk 0:02:58]}  d5 {[%clk 0:02:56]} 4. Nf3 {[%clk 0:02:58]}  Be7 {[%clk 0:02:56]} 5. O-O {[%clk 0:02:57]}  O-O {[%clk 0:02:57]} 6. d4 {[%clk 0:02:57]}  c6 {[%clk 0:02:50]} 7. Nc3 {[%clk 0:02:57]}  a5 {[%clk 0:02:50]} 8. b3 {[%clk 0:02:51]}  b6 {[%clk 0:02:49]} 9. Bb2 {[%clk 0:02:48]}  Bb7 {[%clk 0:02:49]} 10. Qd3 {[%clk 0:02:48]}  Nbd7 {[%clk 0:02:43]} 11. e4 {[%clk 0:02:48]}  dxe4 {[%clk 0:02:41]} 12. Nxe4 {[%clk 0:02:49]}  Nxe4 {[%clk 0:02:42]} 13. Qxe4 {[%clk 0:02:49]}  Nf6 {[%clk 0:02:43]} 14. Qc2 {[%clk 0:02:47]}  c5 {[%clk 0:02:43]} 15. d5 {[%clk 0:02:39]}  exd5 {[%clk 0:02:39]} 16. Ng5 {[%clk 0:02:39]}  h6 {[%clk 0:02:35]} 17. Bxf6 {[%clk 0:01:56]}  hxg5 {[%clk 0:02:32]} 18. Bxe7 {[%clk 0:01:45]}  Qxe7 {[%clk 0:02:33]} 19. Rfe1 {[%clk 0:01:45]}  Qf6 {[%clk 0:02:28]} 20. Rad1 {[%clk 0:01:39]}  Rad8 {[%clk 0:02:27]} 21. Bxd5 {[%clk 0:01:32]}  Bxd5 {[%clk 0:02:26]} 22. Rxd5 {[%clk 0:01:33]}  Rxd5 {[%clk 0:02:26]} 23. cxd5 {[%clk 0:01:34]}  Rd8 {[%clk 0:02:26]} 24. Qe4 {[%clk 0:01:32]}  g6 {[%clk 0:02:23]} 25. Qe5 {[%clk 0:01:30]}  Kg7 {[%clk 0:02:23]} 26. Qe4 {[%clk 0:01:21]}  Rd6 {[%clk 0:02:20]} 27. a4 {[%clk 0:01:21]}  Qd4 {[%clk 0:02:16]} 28. Qe8 {[%clk 0:00:59]}  Qxd5 {[%clk 0:02:09]} 29. Re3 {[%clk 0:00:26]}  Re6 {[%clk 0:02:05]} 30. Rxe6 {[%clk 0:00:24]}  Qxe6 {[%clk 0:02:06]} 31. Qb5 {[%clk 0:00:24]}  g4 {[%clk 0:02:05]} 32. Qc4 {[%clk 0:00:21]}  Qxc4 {[%clk 0:02:05]} 33. bxc4 {[%clk 0:00:21]}  Kf6 {[%clk 0:02:05]} 34. f3 {[%clk 0:00:07]}  gxf3 {[%clk 0:01:56]} 35. Kf2 {[%clk 0:00:07]}  Ke5 {[%clk 0:01:55]} 36. Ke3 {[%clk 0:00:02]}  f2 {[%clk 0:01:50]} 37. Kxf2 {[%clk 0:00:02]}  Kd4 {[%clk 0:01:51]} 38. Kf3 {[%clk 0:00:02]}  Kxc4 {[%clk 0:01:51]} 39. Kf4 {[%clk 0:00:03]}  Kd5 {[%clk 0:01:51]} 40. Kg5 {[%clk 0:00:04]}  Ke6 {[%clk 0:01:51]} 41. h4 {[%clk 0:00:04]}  c4 {[%clk 0:01:51]} 42. g4 {[%clk 0:00:05]}  c3 {[%clk 0:01:51]} 43. h5 {[%clk 0:00:06]}  gxh5 {[%clk 0:01:51]} 44. gxh5 {[%clk 0:00:07]}  c2 {[%clk 0:01:51]} 45. h6 {[%clk 0:00:08]}  c1=Q+ {[%clk 0:01:51]} 0-1


[Site "https://www.chess.com"]

[Event "Titled Tuesday Blitz March 07 Early 2023"]
[White "Tan, Jun Ying"]
[Black "Lopez Del Alamo, Antonio"]
[WhiteFideId "5710413"]
[BlackFideId "2227339"]
[WhiteElo "2089"]
[BlackElo "2175"]
[Result "1-0"]
[Round "01"]
[TimeControl "180+2"]
[Date "2023.03.07"]
[WhiteClock "0:00:05"]
[BlackClock "0:00:05"]

1. Nf3 {[%clk 0:02:59]}  Nf6 {[%clk 0:02:59]} 2. b3 {[%clk 0:02:59]}  g6 {[%clk 0:02:59]} 3. Bb2 {[%clk 0:02:59]}  Bg7 {[%clk 0:02:59]} 4. g3 {[%clk 0:02:59]}  O-O {[%clk 0:02:59]} 5. Bg2 {[%clk 0:03:00]}  d6 {[%clk 0:03:00]} 6. d4 {[%clk 0:03:00]}  Nbd7 {[%clk 0:02:58]} 7. O-O {[%clk 0:03:00]}  c6 {[%clk 0:02:56]} 8. c4 {[%clk 0:03:00]}  Qc7 {[%clk 0:02:56]} 9. Nc3 {[%clk 0:03:00]}  Re8 {[%clk 0:02:56]} 10. e4 {[%clk 0:02:58]}  e5 {[%clk 0:02:56]} 11. Re1 {[%clk 0:02:57]}  a5 {[%clk 0:02:47]} 12. h3 {[%clk 0:02:54]}  exd4 {[%clk 0:02:39]} 13. Nxd4 {[%clk 0:02:54]}  Nc5 {[%clk 0:02:38]} 14. Qc2 {[%clk 0:02:50]}  Bd7 {[%clk 0:02:35]} 15. Rad1 {[%clk 0:02:49]}  Rad8 {[%clk 0:02:35]} 16. Kh2 {[%clk 0:02:47]}  Bc8 {[%clk 0:02:32]} 17. a3 {[%clk 0:02:43]}  h5 {[%clk 0:02:21]} 18. b4 {[%clk 0:02:29]}  axb4 {[%clk 0:02:20]} 19. axb4 {[%clk 0:02:30]}  Na6 {[%clk 0:02:14]} 20. b5 {[%clk 0:02:27]}  Nc5 {[%clk 0:02:13]} 21. bxc6 {[%clk 0:02:25]}  bxc6 {[%clk 0:02:14]} 22. e5 {[%clk 0:02:23]}  dxe5 {[%clk 0:02:12]} 23. Nxc6 {[%clk 0:02:23]}  Rxd1 {[%clk 0:02:11]} 24. Qxd1 {[%clk 0:02:12]}  e4 {[%clk 0:01:58]} 25. Nb4 {[%clk 0:02:05]}  Be6 {[%clk 0:01:52]} 26. Ncd5 {[%clk 0:01:23]}  Bxd5 {[%clk 0:01:43]} 27. Nxd5 {[%clk 0:01:11]}  Nxd5 {[%clk 0:01:41]} 28. Bxg7 {[%clk 0:01:12]}  Kxg7 {[%clk 0:01:05]} 29. Qxd5 {[%clk 0:01:09]}  h4 {[%clk 0:01:04]} 30. Re3 {[%clk 0:00:59]}  hxg3+ {[%clk 0:00:57]} 31. fxg3 {[%clk 0:01:00]}  Qe5 {[%clk 0:00:50]} 32. Qd2 {[%clk 0:00:26]}  f5 {[%clk 0:00:45]} 33. Qf2 {[%clk 0:00:23]}  g5 {[%clk 0:00:35]} 34. Kh1 {[%clk 0:00:21]}  f4 {[%clk 0:00:33]} 35. gxf4 {[%clk 0:00:21]}  gxf4 {[%clk 0:00:32]} 36. Ra3 {[%clk 0:00:21]}  Re7 {[%clk 0:00:22]} 37. Ra5 {[%clk 0:00:20]}  e3 {[%clk 0:00:17]} 38. Qe2 {[%clk 0:00:12]}  Qg5 {[%clk 0:00:11]} 39. Bf3 {[%clk 0:00:09]}  Rd7 {[%clk 0:00:05]} 40. Ra1 {[%clk 0:00:05]} 1-0


[Site "https://www.chess.com"]

[Event "Titled Tuesday Blitz March 07 Early 2023"]
[White "Sahil, Tickoo"]
[Black "Hamitevici, Vladimir"]
[WhiteFideId "5019710"]
[BlackFideId "13902393"]
[WhiteElo "2086"]
[BlackElo "2401"]
[Result "0-1"]
[Round "01"]
[TimeControl "180+2"]
[Date "2023.03.07"]
[WhiteClock "0:00:11"]
[BlackClock "0:00:14"]

1. d4 {[%clk 0:02:55]}  e6 {[%clk 0:02:59]} 2. Bf4 {[%clk 0:02:49]}  f5 {[%clk 0:02:55]} 3. Nc3 {[%clk 0:02:44]}  Nf6 {[%clk 0:02:55]} 4. g4 {[%clk 0:02:37]}  Bb4 {[%clk 0:02:50]} 5. gxf5 {[%clk 0:02:32]}  exf5 {[%clk 0:02:51]} 6. Qd3 {[%clk 0:02:21]}  d5 {[%clk 0:02:38]} 7. O-O-O {[%clk 0:02:10]}  c6 {[%clk 0:02:24]} 8. Nf3 {[%clk 0:01:57]}  Ne4 {[%clk 0:02:20]} 9. Nxe4 {[%clk 0:01:39]}  fxe4 {[%clk 0:02:21]} 10. Qb3 {[%clk 0:01:39]}  Bd6 {[%clk 0:01:55]} 11. Bxd6 {[%clk 0:01:37]}  Qxd6 {[%clk 0:01:56]} 12. Ne5 {[%clk 0:01:36]}  O-O {[%clk 0:01:52]} 13. f3 {[%clk 0:01:32]}  exf3 {[%clk 0:01:47]} 14. exf3 {[%clk 0:01:32]}  Nd7 {[%clk 0:01:46]} 15. Re1 {[%clk 0:01:23]}  Nxe5 {[%clk 0:01:25]} 16. dxe5 {[%clk 0:01:23]}  Qh6+ {[%clk 0:01:25]} 17. Kb1 {[%clk 0:01:23]}  b5 {[%clk 0:01:25]} 18. Bd3 {[%clk 0:01:07]}  Bf5 {[%clk 0:01:24]} 19. Bxf5 {[%clk 0:01:04]}  Rxf5 {[%clk 0:01:25]} 20. e6 {[%clk 0:01:02]}  Re8 {[%clk 0:01:21]} 21. Qa3 {[%clk 0:00:52]}  Rxe6 {[%clk 0:01:14]} 22. Qxa7 {[%clk 0:00:49]}  Rxf3 {[%clk 0:00:50]} 23. a3 {[%clk 0:00:34]}  Rf8 {[%clk 0:00:34]} 24. Qd7 {[%clk 0:00:30]}  Rg6 {[%clk 0:00:24]} 25. Re8 {[%clk 0:00:25]}  Rf6 {[%clk 0:00:20]} 26. Rhe1 {[%clk 0:00:23]}  Qg6 {[%clk 0:00:20]} 27. Rxf8+ {[%clk 0:00:22]}  Rxf8 {[%clk 0:00:20]} 28. Re6 {[%clk 0:00:17]}  Qg1+ {[%clk 0:00:12]} 29. Ka2 {[%clk 0:00:17]}  Qxh2 {[%clk 0:00:13]} 30. Rxc6 {[%clk 0:00:15]}  Qg2 {[%clk 0:00:12]} 31. Qe6+ {[%clk 0:00:15]}  Kh8 {[%clk 0:00:11]} 32. Rc8 {[%clk 0:00:14]}  Qf3 {[%clk 0:00:10]} 33. Rxf8+ {[%clk 0:00:11]}  Qxf8 {[%clk 0:00:11]} 34. Qxd5 {[%clk 0:00:11]}  Qe8 {[%clk 0:00:12]} 35. b3 {[%clk 0:00:10]}  h5 {[%clk 0:00:11]} 36. Qg5 {[%clk 0:00:10]}  Qe2 {[%clk 0:00:09]} 37. Kb2 {[%clk 0:00:09]}  Kh7 {[%clk 0:00:09]} 38. Qf5+ {[%clk 0:00:08]}  Kh6 {[%clk 0:00:09]} 39. Qf4+ {[%clk 0:00:08]}  Kg6 {[%clk 0:00:09]} 40. Qg3+ {[%clk 0:00:07]}  Kf6 {[%clk 0:00:09]} 41. a4 {[%clk 0:00:08]}  bxa4 {[%clk 0:00:08]} 42. Qd6+ {[%clk 0:00:09]}  Kf5 {[%clk 0:00:08]} 43. Qc5+ {[%clk 0:00:09]}  Qe5+ {[%clk 0:00:09]} 44. Qxe5+ {[%clk 0:00:08]}  Kxe5 {[%clk 0:00:10]} 45. bxa4 {[%clk 0:00:09]}  h4 {[%clk 0:00:10]} 46. a5 {[%clk 0:00:09]}  h3 {[%clk 0:00:11]} 47. a6 {[%clk 0:00:10]}  h2 {[%clk 0:00:12]} 48. a7 {[%clk 0:00:11]}  h1=Q {[%clk 0:00:13]} 49. a8=Q {[%clk 0:00:11]}  Qxa8 {[%clk 0:00:14]} 0-1


[Site "https://www.chess.com"]

[Event "Titled Tuesday Blitz March 07 Early 2023"]
[White "Aggelis, Nikolaos"]
[Black "Dwilewicz, Katarzyna"]
[WhiteFideId "4213220"]
[BlackFideId "1148486"]
[WhiteElo "2189"]
[BlackElo "2065"]
[Result "1-0"]
[Round "01"]
[TimeControl "180+2"]
[Date "2023.03.07"]
[WhiteClock "0:01:38"]
[BlackClock "0:00:03"]

1. d4 {[%clk 0:02:59]}  d5 {[%clk 0:02:57]} 2. g3 {[%clk 0:03:00]}  e6 {[%clk 0:02:55]} 3. Bg2 {[%clk 0:03:00]}  g6 {[%clk 0:02:53]} 4. Nf3 {[%clk 0:03:01]}  Bg7 {[%clk 0:02:53]} 5. O-O {[%clk 0:03:01]}  Ne7 {[%clk 0:02:54]} 6. Nbd2 {[%clk 0:02:59]}  O-O {[%clk 0:02:51]} 7. e4 {[%clk 0:02:59]}  dxe4 {[%clk 0:02:47]} 8. Nxe4 {[%clk 0:03:00]}  b6 {[%clk 0:02:43]} 9. Bg5 {[%clk 0:02:57]}  Bb7 {[%clk 0:02:42]} 10. Nf6+ {[%clk 0:02:53]}  Kh8 {[%clk 0:02:42]} 11. Ng4 {[%clk 0:02:36]}  f6 {[%clk 0:02:35]} 12. Bd2 {[%clk 0:02:25]}  Nd7 {[%clk 0:02:15]} 13. Re1 {[%clk 0:02:18]}  f5 {[%clk 0:01:39]} 14. Ng5 {[%clk 0:02:09]}  fxg4 {[%clk 0:01:32]} 15. Nxe6 {[%clk 0:02:08]}  Qc8 {[%clk 0:01:11]} 16. Bxb7 {[%clk 0:02:05]}  Qxb7 {[%clk 0:01:10]} 17. Nxg7 {[%clk 0:02:06]}  Nd5 {[%clk 0:00:56]} 18. Ne6 {[%clk 0:01:59]}  Rf3 {[%clk 0:00:55]} 19. c4 {[%clk 0:01:55]}  N5f6 {[%clk 0:00:46]} 20. d5 {[%clk 0:01:55]}  Kg8 {[%clk 0:00:44]} 21. Nd4 {[%clk 0:01:55]}  Rd3 {[%clk 0:00:38]} 22. Bc3 {[%clk 0:01:53]}  Rxd1 {[%clk 0:00:37]} 23. Raxd1 {[%clk 0:01:53]}  Re8 {[%clk 0:00:28]} 24. Nc6 {[%clk 0:01:51]}  Nc5 {[%clk 0:00:23]} 25. Bxf6 {[%clk 0:01:46]}  Re4 {[%clk 0:00:14]} 26. b4 {[%clk 0:01:42]}  Rxe1+ {[%clk 0:00:14]} 27. Rxe1 {[%clk 0:01:41]}  Kf7 {[%clk 0:00:03]} 28. Nd8+ {[%clk 0:01:37]}  Kxf6 {[%clk 0:00:03]} 29. Nxb7 {[%clk 0:01:38]} 1-0


[Site "https://www.chess.com"]

[Event "Titled Tuesday Blitz March 07 Early 2023"]
[White "Malek, Jan"]
[Black "Dishman, Stephen"]
[WhiteFideId "21864080"]
[BlackFideId "403024"]
[WhiteElo "2255"]
[BlackElo "2204"]
[Result "1-0"]
[Round "01"]
[TimeControl "180+2"]
[Date "2023.03.07"]
[WhiteClock "0:01:27"]
[BlackClock "0:00:16"]

1. b3 {[%clk 0:02:49]}  d5 {[%clk 0:02:59]} 2. Bb2 {[%clk 0:02:50]}  Bg4 {[%clk 0:02:59]} 3. Nf3 {[%clk 0:02:50]}  Bxf3 {[%clk 0:02:57]} 4. exf3 {[%clk 0:02:49]}  e6 {[%clk 0:02:56]} 5. d4 {[%clk 0:02:49]}  Nd7 {[%clk 0:02:55]} 6. f4 {[%clk 0:02:49]}  g6 {[%clk 0:02:53]} 7. Nd2 {[%clk 0:02:49]}  Bg7 {[%clk 0:02:53]} 8. Nf3 {[%clk 0:02:49]}  Ne7 {[%clk 0:02:50]} 9. Bd3 {[%clk 0:02:50]}  O-O {[%clk 0:02:50]} 10. O-O {[%clk 0:02:50]}  Nf5 {[%clk 0:02:48]} 11. Re1 {[%clk 0:02:43]}  Nd6 {[%clk 0:02:44]} 12. Ne5 {[%clk 0:02:42]}  Rc8 {[%clk 0:02:40]} 13. Qe2 {[%clk 0:02:38]}  c5 {[%clk 0:02:38]} 14. c4 {[%clk 0:02:24]}  dxc4 {[%clk 0:02:26]} 15. bxc4 {[%clk 0:02:23]}  cxd4 {[%clk 0:02:24]} 16. Bxd4 {[%clk 0:02:23]}  Nc5 {[%clk 0:02:19]} 17. Rad1 {[%clk 0:02:16]}  Nxd3 {[%clk 0:01:55]} 18. Rxd3 {[%clk 0:02:03]}  Qc7 {[%clk 0:01:54]} 19. Rc1 {[%clk 0:01:57]}  Nf5 {[%clk 0:01:46]} 20. Bb2 {[%clk 0:01:52]}  Rfd8 {[%clk 0:01:42]} 21. Rcd1 {[%clk 0:01:50]}  Rxd3 {[%clk 0:01:22]} 22. Qxd3 {[%clk 0:01:50]}  Qb6 {[%clk 0:01:16]} 23. Qd7 {[%clk 0:01:41]}  Rf8 {[%clk 0:01:15]} 24. Ba3 {[%clk 0:01:40]}  Bxe5 {[%clk 0:00:56]} 25. Bxf8 {[%clk 0:01:38]}  Bd4 {[%clk 0:00:46]} 26. Qe8 {[%clk 0:01:33]}  Qc6 {[%clk 0:00:23]} 27. Qxc6 {[%clk 0:01:28]}  bxc6 {[%clk 0:00:22]} 28. g4 {[%clk 0:01:29]}  Kxf8 {[%clk 0:00:20]} 29. gxf5 {[%clk 0:01:28]}  c5 {[%clk 0:00:20]} 30. fxe6 {[%clk 0:01:28]}  fxe6 {[%clk 0:00:20]} 31. Kg2 {[%clk 0:01:29]}  Kf7 {[%clk 0:00:20]} 32. Kf3 {[%clk 0:01:29]}  Kf6 {[%clk 0:00:20]} 33. Ke4 {[%clk 0:01:30]}  h6 {[%clk 0:00:18]} 34. f3 {[%clk 0:01:27]}  g5 {[%clk 0:00:18]} 35. fxg5+ {[%clk 0:01:26]}  hxg5 {[%clk 0:00:19]} 36. Rxd4 {[%clk 0:01:25]}  cxd4 {[%clk 0:00:18]} 37. Kxd4 {[%clk 0:01:26]}  Kf5 {[%clk 0:00:18]} 38. c5 {[%clk 0:01:27]}  e5+ {[%clk 0:00:15]} 39. Kd5 {[%clk 0:01:26]}  Kf4 {[%clk 0:00:16]} 40. c6 {[%clk 0:01:27]}  g4 {[%clk 0:00:16]} 41. fxg4 {[%clk 0:01:24]}  e4 {[%clk 0:00:16]} 42. c7 {[%clk 0:01:25]}  e3 {[%clk 0:00:17]} 43. c8=Q {[%clk 0:01:25]}  e2 {[%clk 0:00:17]} 44. Qf5+ {[%clk 0:01:26]}  Ke3 {[%clk 0:00:17]} 45. Qe5+ {[%clk 0:01:27]}  Kf2 {[%clk 0:00:16]} 46. g5 {[%clk 0:01:27]} 1-0


[Site "https://www.chess.com"]

[Event "Titled Tuesday Blitz March 07 Early 2023"]
[White "Vlassov, Nikolai"]
[Black "Liu, Kelsey"]
[WhiteFideId "4103360"]
[BlackFideId "30944481"]
[WhiteElo "2324"]
[BlackElo "2318"]
[Result "1-0"]
[Round "01"]
[TimeControl "180+2"]
[Date "2023.03.07"]
[WhiteClock "0:01:09"]
[BlackClock "0:00:15"]

1. e4 {[%clk 0:02:56]}  c5 {[%clk 0:02:59]} 2. c3 {[%clk 0:02:56]}  Nf6 {[%clk 0:02:58]} 3. e5 {[%clk 0:02:55]}  Nd5 {[%clk 0:02:58]} 4. d4 {[%clk 0:02:55]}  cxd4 {[%clk 0:02:59]} 5. cxd4 {[%clk 0:02:55]}  d6 {[%clk 0:02:59]} 6. Bc4 {[%clk 0:02:55]}  e6 {[%clk 0:02:59]} 7. Nf3 {[%clk 0:02:54]}  Nc6 {[%clk 0:02:57]} 8. O-O {[%clk 0:02:53]}  Be7 {[%clk 0:02:57]} 9. Qe2 {[%clk 0:02:53]}  O-O {[%clk 0:02:53]} 10. Qe4 {[%clk 0:02:52]}  Bd7 {[%clk 0:02:14]} 11. Bd3 {[%clk 0:02:46]}  f5 {[%clk 0:01:49]} 12. exf6 {[%clk 0:02:45]}  Nxf6 {[%clk 0:01:47]} 13. Qe2 {[%clk 0:02:36]}  Nb4 {[%clk 0:01:44]} 14. Bc4 {[%clk 0:02:35]}  d5 {[%clk 0:01:44]} 15. Bb3 {[%clk 0:02:35]}  Qb6 {[%clk 0:01:40]} 16. Re1 {[%clk 0:02:32]}  Ne4 {[%clk 0:01:22]} 17. Nc3 {[%clk 0:02:30]}  Nxc3 {[%clk 0:01:02]} 18. bxc3 {[%clk 0:02:30]}  Na6 {[%clk 0:01:03]} 19. Ne5 {[%clk 0:02:12]}  Bb5 {[%clk 0:01:01]} 20. Qh5 {[%clk 0:02:11]}  Rf5 {[%clk 0:00:58]} 21. Qh3 {[%clk 0:02:07]}  Raf8 {[%clk 0:00:58]} 22. Bc2 {[%clk 0:01:56]}  Bd6 {[%clk 0:00:29]} 23. g4 {[%clk 0:01:31]}  Bxe5 {[%clk 0:00:24]} 24. gxf5 {[%clk 0:01:31]}  Bxd4 {[%clk 0:00:14]} 25. cxd4 {[%clk 0:01:28]}  Qxd4 {[%clk 0:00:15]} 26. Be3 {[%clk 0:01:21]}  Qc3 {[%clk 0:00:15]} 27. Rac1 {[%clk 0:01:13]}  d4 {[%clk 0:00:15]} 28. fxe6 {[%clk 0:01:09]} 1-0


[Site "https://www.chess.com"]